bitfinex/quotes_BTCUSD_20220202
["timestamp","ask_amount","ask_price","bid_price","bid_amount"]
[1643796749162,0.20094,38464.0,38461.0,0.05634068]
[1643796750010,0.20094,38464.0,38461.0,0.055005]
[1643796750214,0.20094,38464.0,38461.0,0.05634068]
[1643796751211,0.27300663,38465.0,38461.0,0.055005]
[1643796751412,0.27300663,38465.0,38461.0,0.05634068]
[1643796751613,0.74479257,38467.0,38461.0,0.05634068]
[1643796751814,0.74479257,38467.0,38462.0,0.31533488]
[1643796751815,0.4843155,38467.0,38462.0,0.31533488]
[1643796752013,0.30820053,38467.0,38462.0,0.38033588]
[1643796752214,0.30820053,38467.0,38462.0,0.43033588]
[1643796752614,0.30820053,38467.0,38462.0,0.43167151]
[1643796752817,0.54699308,38467.0,38462.0,0.43167151]
[1643796753458,0.54699308,38467.0,38462.0,0.18133763]
[1643796753659,0.54699308,38467.0,38462.0,0.180002]
[1643796753860,0.54699308,38467.0,38462.0,0.18133763]
[1643796754160,0.60441061,38466.0,38462.0,0.05133563]
[1643796754361,0.0522,38465.0,38462.0,0.00133563]
[1643796754561,0.57228115,38464.0,38462.0,0.00133563]
[1643796754762,0.7522,38463.0,38462.0,0.00133563]
[1643796754960,0.3042615,38462.0,38456.0,0.065014]
[1643796755161,0.3042615,38462.0,38461.0,0.00133566]
[1643796755363,0.48037647,38462.0,38461.0,0.00133566]
[1643796755561,0.3042615,38462.0,38461.0,0.00133566]
[1643796755761,0.7066505,38462.0,38461.0,0.00133566]
[1643796756161,0.7066505,38462.0,38458.0,0.065013]
[1643796756361,0.67347489,38461.0,38460.0,0.00133572]
[1643796756561,1.02366389,38461.0,38460.0,0.00133572]
[1643796756761,1.19977886,38461.0,38460.0,0.00133572]
[1643796757308,0.59929848,38461.0,38458.0,0.065013]
[1643796757508,0.24910948,38461.0,38459.0,0.00133575]
[1643796757708,0.07299451,38461.0,38459.0,0.00133575]
[1643796758310,0.35,38460.0,38458.0,0.06487724]
[1643796758509,0.0522,38462.0,38459.0,0.065009]
[1643796758709,0.0522,38462.0,38459.0,0.115009]
[1643796759809,0.0522,38462.0,38459.0,0.12541]
[1643796760011,0.0522,38462.0,38459.0,0.115009]
[1643796760612,0.0522,38462.0,38458.0,0.11487724]
[1643796761560,0.91322342,38464.0,38458.0,0.11487724]
[1643796761960,0.65753617,38464.0,38458.0,0.11487724]
[1643796762159,0.65616813,38464.0,38458.0,0.11487724]
[1643796762359,0.65753619,38464.0,38458.0,0.11487724]
[1643796763362,0.65616813,38464.0,38458.0,0.11487724]
[1643796763561,0.65753619,38464.0,38458.0,0.11487724]
[1643796763761,0.65753619,38464.0,38458.0,0.12527924]
[1643796764361,0.65753619,38464.0,38458.0,0.11487724]
[1643796764820,0.350189,38463.0,38458.0,0.11487724]
[1643796765020,0.65753619,38464.0,38458.0,0.11487724]
[1643796765221,0.83365116,38464.0,38458.0,0.11487724]
[1643796765420,0.65753619,38464.0,38458.0,0.11487724]
[1643796765623,0.65616813,38464.0,38458.0,0.11487724]
[1643796765823,0.65753619,38464.0,38458.0,0.11487724]
[1643796766822,0.65616813,38464.0,38458.0,0.11487724]
[1643796767023,0.25560922,38463.0,38458.0,0.11487724]
[1643796767223,0.60579822,38463.0,38458.0,0.11487724]
[1643796767422,0.60579822,38463.0,38457.0,0.00132912]
[1643796767626,0.74853964,38458.0,38457.0,0.00132912]
[1643796767823,1.11080664,38458.0,38457.0,0.00132912]
[1643796768023,0.61080664,38458.0,38455.0,0.065017]
[1643796768286,0.30073964,38458.0,38456.0,0.00132918]
[1643796768476,0.650189,38457.0,38456.0,0.00132918]
[1643796768677,0.350189,38457.0,38456.0,0.00132918]
[1643796768877,0.54939384,38458.0,38456.0,0.00132918]
[1643796769277,0.54939384,38458.0,38454.0,0.02175376]
[1643796769478,0.61441484,38458.0,38455.0,0.00132919]
[1643796770278,0.25573243,38457.0,38455.0,0.00132919]
[1643796770480,0.25573243,38457.0,38453.0,0.0011]
[1643796770680,0.25573243,38457.0,38455.0,0.00132921]
[1643796770882,0.61441484,38458.0,38455.0,0.00132921]
[1643796770883,0.79052981,38458.0,38455.0,0.00132921]
[1643796771079,0.61441484,38458.0,38455.0,0.00132921]
[1643796771480,0.87744999,38458.0,38455.0,0.00132921]
[1643796771681,0.61441484,38458.0,38454.0,0.010402]
[1643796771881,0.25772165,38457.0,38455.0,0.00132921]
[1643796772114,0.61441484,38458.0,38455.0,0.00132921]
[1643796772715,0.31356064,38458.0,38455.0,0.00132921]
[1643796772917,0.31356064,38458.0,38453.0,0.0011]
[1643796773116,0.31356064,38458.0,38455.0,0.00132921]
[1643796773619,0.065017,38460.0,38455.0,0.00132921]
[1643796773816,0.29016307,38461.0,38455.0,0.00132921]
[1643796774017,0.27428633,38463.0,38454.0,0.065017]
[1643796774217,0.37428633,38463.0,38456.0,0.00132916]
[1643796774419,0.350189,38462.0,38456.0,0.00132916]
[1643796774618,0.54392696,38461.0,38456.0,0.00132916]
[1643796774819,0.410067,38460.0,38456.0,0.00132916]
[1643796775018,0.32909457,38459.0,38456.0,0.00132916]
[1643796775217,0.450189,38458.0,38453.0,0.0011]
[1643796775418,0.450189,38458.0,38456.0,0.00132918]
[1643796776070,0.6570195,38457.0,38456.0,0.00132918]
[1643796776270,0.710067,38457.0,38456.0,0.00132918]
[1643796776468,0.710067,38457.0,38453.0,0.0011]
[1643796776469,0.88618197,38457.0,38453.0,0.0011]
[1643796776670,0.4,38457.0,38455.0,0.00132921]
[1643796776870,0.350189,38456.0,38455.0,0.00132921]
[1643796777070,0.45269321,38458.0,38455.0,0.00132921]
[1643796777269,0.62249651,38457.0,38455.0,0.00132921]
[1643796777670,0.62249651,38457.0,38453.0,0.0011]
[1643796777671,0.2650971,38456.0,38453.0,0.0011]
[1643796777873,0.375095,38455.0,38454.0,0.00132923]
[1643796778073,0.7164688,38455.0,38454.0,0.00132923]
[1643796778270,0.8164688,38455.0,38454.0,0.00132923]
[1643796778470,0.99258377,38455.0,38454.0,0.00132923]
[1643796778673,1.03948304,38455.0,38454.0,0.00132923]
[1643796778872,1.21559801,38455.0,38453.0,0.0011]
[1643796779072,1.09990969,38454.0,38453.0,0.00242928]
[1643796779272,1.67841366,38454.0,38453.0,0.00242928]
[1643796780013,1.67841366,38454.0,38453.0,0.0011]
[1643796780313,1.57841366,38454.0,38453.0,0.0011]
[1643796781112,1.67841366,38454.0,38453.0,0.0011]
[1643796781712,1.57841366,38454.0,38453.0,0.0011]
[1643796782314,1.27850397,38454.0,38453.0,0.0011]
[1643796782713,1.27850397,38454.0,38453.0,0.00102899]
[1643796783114,1.37850397,38454.0,38453.0,0.00102899]
[1643796783766,1.27850397,38454.0,38453.0,0.00102899]
[1643796784765,1.22630397,38454.0,38453.0,0.00102899]
[1643796790213,0.52630397,38454.0,38453.0,0.00102899]
[1643796790415,0.20328811,38454.0,38453.0,0.00102899]
[1643796790613,0.02717314,38454.0,38453.0,0.00102899]
[1643796792868,0.24212963,38459.0,38453.0,0.00102899]
[1643796793169,0.24533855,38461.0,38454.0,0.065013]
[1643796793367,0.34533855,38461.0,38454.0,0.065013]
[1643796793667,0.34533855,38461.0,38457.0,0.24386979]
[1643796794067,0.24663155,38460.0,38458.0,0.05]
[1643796795113,0.350189,38459.0,38458.0,0.05]
[1643796795716,0.24663155,38460.0,38458.0,0.05]
[1643796799563,0.350189,38459.0,38458.0,0.05]
[1643796799766,0.350189,38459.0,38457.0,0.00132912]
[1643796800566,0.415207,38459.0,38454.0,0.180037]
[1643796800763,0.415207,38459.0,38456.0,0.00132916]
[1643796800764,0.065018,38459.0,38456.0,0.00132916]
[1643796800962,0.350189,38458.0,38456.0,0.00132916]
[1643796801163,0.4268811,38459.0,38456.0,0.00132916]
[1643796801762,0.4268811,38459.0,38454.0,0.115019]
[1643796802016,0.065018,38459.0,38456.0,0.00132918]
[1643796802812,0.065018,38459.0,38454.0,0.115019]
[1643796803013,0.065018,38459.0,38456.0,0.00132918]
[1643796803415,0.065018,38459.0,38456.0,0.00060154]
[1643796804015,0.065018,38459.0,38454.0,0.180036]
[1643796804214,0.065018,38459.0,38454.0,0.18055198]
[1643796804816,0.065018,38459.0,38454.0,0.13055198]
[1643796805218,0.065018,38459.0,38454.0,0.130036]
[1643796805418,0.065018,38459.0,38454.0,0.00051598]
[1643796805618,0.350189,38458.0,38454.0,0.00051598]
[1643796805869,0.065023,38457.0,38454.0,0.00051598]
[1643796806269,0.28349051,38456.0,38454.0,0.00051598]
[1643796806467,0.28349051,38456.0,38453.0,0.3495849]
[1643796806667,0.28349051,38456.0,38453.0,0.2995849]
[1643796806869,0.28349051,38456.0,38453.0,0.3001009]
[1643796807267,0.62725239,38456.0,38453.0,0.3001009]
[1643796807672,0.62725239,38456.0,38453.0,0.2995849]
[1643796807870,0.62725239,38456.0,38453.0,0.35061509]
[1643796809071,0.62725239,38456.0,38453.0,0.35079444]
[1643796809270,0.62725239,38456.0,38453.0,0.34079444]
[1643796809916,0.28349051,38456.0,38453.0,0.34079444]
[1643796810117,0.28349051,38456.0,38453.0,0.3395849]
[1643796810320,0.2562424,38459.0,38453.0,0.40581344]
[1643796810321,0.065019,38459.0,38453.0,0.40581344]
[1643796810517,0.18355208,38461.0,38453.0,0.40581344]
[1643796810518,0.17745275,38461.0,38454.0,0.065019]
[1643796810718,0.00130908,38461.0,38454.0,0.065019]
[1643796810917,0.29321894,38460.0,38454.0,0.065019]
[1643796811317,0.21117876,38459.0,38454.0,0.065019]
[1643796811518,0.29321894,38460.0,38454.0,0.06622849]
[1643796812221,0.00130912,38461.0,38455.0,0.065015]
[1643796812519,0.02717072,38462.0,38455.0,0.065015]
[1643796812520,0.2158649,38460.0,38456.0,0.065012]
[1643796812721,0.2158649,38460.0,38458.0,0.05]
[1643796814472,0.60713982,38459.0,38458.0,0.05]
[1643796814671,0.350189,38459.0,38458.0,0.05]
[1643796815672,0.350189,38459.0,38454.0,0.13107545]
[1643796815873,0.2808819,38460.0,38454.0,0.18107545]
[1643796815874,0.06502,38458.0,38454.0,0.18107545]
[1643796816072,0.06502,38458.0,38454.0,0.180022]
[1643796816272,0.350189,38457.0,38454.0,0.18111056]
[1643796816873,0.06502,38458.0,38454.0,0.24612856]
[1643796817317,0.06502,38458.0,38454.0,0.24504]
[1643796817517,0.06502,38458.0,38454.0,0.24612856]
[1643796818519,0.06502,38458.0,38454.0,0.24504]
[1643796818718,0.06502,38458.0,38454.0,0.24612856]
[1643796819719,0.06502,38458.0,38454.0,0.24504]
[1643796819919,0.06502,38458.0,38454.0,0.24612066]
[1643796820970,0.06502,38458.0,38454.0,0.24504]
[1643796821167,0.06502,38458.0,38454.0,0.24612066]
[1643796821367,0.27738837,38461.0,38454.0,0.24612066]
[1643796821368,0.17738837,38461.0,38454.0,0.24612066]
[1643796821569,0.17738837,38461.0,38455.0,0.06501]
[1643796821769,0.0012447,38461.0,38456.0,0.065007]
[1643796822173,0.45021845,38466.0,38456.0,0.115007]
[1643796822370,0.45021845,38466.0,38456.0,0.34592533]
[1643796822371,0.00124475,38461.0,38456.0,0.34592533]
[1643796822571,0.00124475,38461.0,38457.0,0.350189]
[1643796822769,0.00124475,38461.0,38457.0,0.415193]
[1643796823372,0.13049683,38467.0,38457.0,0.415193]
[1643796823573,0.00124564,38461.0,38457.0,0.065004]
[1643796823770,0.00124564,38461.0,38458.0,0.57110689]
[1643796823969,0.00124564,38461.0,38458.0,0.63610889]
[1643796824376,0.00124564,38461.0,38459.0,0.065002]
[1643796824619,0.17614367,38468.0,38460.0,0.62307242]
[1643796824819,0.00124565,38461.0,38460.0,0.67307242]
[1643796825619,0.21885961,38469.0,38460.0,0.7380682]
[1643796825819,0.21885961,38469.0,38460.0,0.3878792]
[1643796826022,0.00124564,38462.0,38460.0,0.3878792]
[1643796826219,0.00124564,38462.0,38461.0,0.350189]
[1643796826818,0.21885961,38469.0,38461.0,0.61332658]
[1643796827021,0.21885961,38469.0,38463.0,0.064997]
[1643796827219,0.21885961,38469.0,38464.0,0.28591266]
[1643796827420,0.24654243,38470.0,38464.0,0.05]
[1643796827722,0.24654243,38470.0,38461.0,0.2633189]
[1643796828367,0.00124537,38467.0,38462.0,0.129993]
[1643796828569,0.00124537,38467.0,38463.0,0.24858527]
[1643796828768,0.00124537,38467.0,38465.0,0.27803956]
[1643796829165,0.00124537,38467.0,38466.0,0.05]
[1643796829366,0.20634628,38468.0,38466.0,0.05]
[1643796829565,0.20759164,38468.0,38466.0,0.05]
[1643796829967,0.00124536,38468.0,38466.0,0.05]
[1643796830167,0.00124536,38468.0,38467.0,0.23793062]
[1643796830468,0.70924367,38477.0,38467.0,0.23793062]
[1643796830666,0.00124538,38469.0,38467.0,0.23793062]
[1643796831072,0.00124538,38469.0,38468.0,0.12998]
[1643796831268,0.00124538,38469.0,38468.0,0.46001876]
[1643796831666,0.22801936,38476.0,38468.0,0.46001876]
[1643796831867,0.22801936,38476.0,38471.0,0.05]
[1643796832117,0.22801936,38476.0,38471.0,0.1]
[1643796832318,0.350189,38475.0,38471.0,0.05]
[1643796833219,0.35143431,38475.0,38471.0,0.05]
[1643796833420,0.41643231,38475.0,38471.0,0.05]
[1643796833623,0.38192883,38474.0,38471.0,0.05]
[1643796833820,0.310067,38473.0,38471.0,0.05]
[1643796837969,0.310067,38473.0,38469.0,0.05]
[1643796837970,0.375068,38473.0,38468.0,0.12998]
[1643796838171,0.375068,38473.0,38465.0,0.27803956]
[1643796838172,0.1,38472.0,38466.0,0.065002]
[1643796838570,0.1,38472.0,38465.0,0.27803956]
[1643796838772,0.350189,38471.0,38468.0,0.010399]
[1643796839169,0.00124536,38470.0,38463.0,0.194996]
[1643796839369,0.00124536,38470.0,38463.0,0.244996]
[1643796839916,0.00124536,38470.0,38464.0,0.2417951]
[1643796840116,0.065004,38471.0,38464.0,0.2417951]
[1643796840317,0.00124539,38468.0,38464.0,0.2417951]
[1643796840818,0.00124539,38468.0,38464.0,0.54091006]
[1643796841020,0.00124539,38468.0,38465.0,0.064992]
[1643796841217,0.00124539,38468.0,38466.0,0.24099213]
[1643796841420,0.22798192,38474.0,38466.0,0.24099213]
[1643796841616,0.22798192,38474.0,38464.0,0.2917951]
[1643796841617,0.00124539,38468.0,38464.0,0.53527793]
[1643796842218,0.00124539,38468.0,38465.0,0.064997]
[1643796842619,0.02716192,38474.0,38465.0,0.064997]
[1643796842823,0.00124539,38468.0,38466.0,0.129991]
[1643796843667,0.12716192,38474.0,38466.0,0.129991]
[1643796843867,0.00124538,38469.0,38466.0,0.129991]
[1643796844867,0.44244092,38474.0,38466.0,0.129991]
[1643796845068,0.350189,38473.0,38466.0,0.129991]
[1643796845269,0.00124538,38469.0,38466.0,0.129991]
[1643796845468,0.00124538,38469.0,38463.0,0.129999]
[1643796845469,0.310067,38468.0,38463.0,0.129999]
[1643796845670,0.00124538,38469.0,38463.0,0.129999]
[1643796845869,0.00124538,38469.0,38463.0,0.36468349]
[1643796846070,0.065005,38470.0,38463.0,0.129999]
[1643796846271,0.35159496,38468.0,38463.0,0.36314521]
[1643796846471,0.35159496,38468.0,38463.0,0.129999]
[1643796846674,0.0012454,38468.0,38463.0,0.6109559]
[1643796846872,0.0012454,38468.0,38463.0,0.37617071]
[1643796847319,0.065001,38472.0,38463.0,0.37617071]
[1643796847520,0.0012454,38467.0,38463.0,0.37617071]
[1643796848318,0.0012454,38467.0,38463.0,0.42617071]
[1643796848520,0.36618652,38469.0,38463.0,0.42617071]
[1643796848521,0.36618652,38469.0,38463.0,0.37617071]
[1643796848820,0.00124541,38467.0,38463.0,0.72713481]
[1643796849019,0.00124541,38467.0,38463.0,0.49117071]
[1643796849721,0.065001,38472.0,38464.0,0.064998]
[1643796849922,0.00124541,38467.0,38464.0,0.064998]
[1643796850970,0.27042404,38470.0,38464.0,0.064998]
[1643796851170,0.0012454,38467.0,38464.0,0.064998]
[1643796852171,0.27042404,38470.0,38463.0,0.24617171]
[1643796852371,0.0012454,38467.0,38463.0,0.24617171]
[1643796853373,0.0522,38469.0,38463.0,0.24617171]
[1643796853574,0.00124541,38467.0,38463.0,0.24617171]
[1643796854619,0.1522,38469.0,38463.0,0.24617171]
[1643796854818,0.00124541,38467.0,38463.0,0.29617171]
[1643796855522,0.00124541,38467.0,38464.0,0.23390554]
[1643796855721,0.0522,38469.0,38464.0,0.23320516]
[1643796855921,0.00124541,38467.0,38464.0,0.23320516]
[1643796856122,0.00124541,38467.0,38466.0,0.064993]
[1643796856321,0.00124541,38467.0,38466.0,0.32097602]
[1643796856523,0.00124541,38467.0,38466.0,0.72116502]
[1643796856724,0.00124541,38467.0,38466.0,0.37097602]
[1643796856924,0.12716192,38474.0,38466.0,0.37097602]
[1643796857122,0.00124539,38468.0,38466.0,0.43596902]
[1643796857325,0.00124539,38468.0,38467.0,0.23543169]
[1643796857924,0.00124539,38468.0,38466.0,0.179986]
[1643796858124,0.02716192,38474.0,38466.0,0.190385]
[1643796858369,0.00124538,38469.0,38468.0,0.064994]
[1643796859368,0.02716192,38474.0,38468.0,0.064994]
[1643796859572,0.00124536,38470.0,38468.0,0.064994]
[1643796860470,0.02716192,38474.0,38468.0,0.064994]
[1643796860672,0.00124535,38471.0,38468.0,0.064994]
[1643796860870,0.00124535,38471.0,38468.0,0.06490837]
[1643796861170,0.00124535,38471.0,38464.0,0.179984]
[1643796861371,0.00124535,38471.0,38464.0,0.05]
[1643796861770,0.35133847,38472.0,38463.0,0.44347171]
[1643796862023,0.00124538,38469.0,38463.0,0.45387171]
[1643796862422,0.00124538,38469.0,38463.0,0.44347171]
[1643796862623,0.00124538,38469.0,38463.0,0.29617171]
[1643796863023,0.065004,38470.0,38463.0,0.53303092]
[1643796863225,0.0012454,38468.0,38463.0,0.53303092]
[1643796863627,0.0012454,38468.0,38463.0,0.59803192]
[1643796864126,0.18220363,38472.0,38463.0,0.59803192]
[1643796864325,0.0012454,38467.0,38463.0,0.59803192]
[1643796864527,0.0012454,38467.0,38463.0,0.66302892]
[1643796865427,0.1571549,38474.0,38466.0,0.064997]
[1643796865626,0.00124541,38467.0,38466.0,0.064997]
[1643796866469,0.48621464,38474.0,38466.0,0.064997]
[1643796866670,0.00124539,38468.0,38466.0,0.064997]
[1643796867471,0.00124539,38468.0,38467.0,0.23362532]
[1643796867670,0.35622166,38474.0,38466.0,0.064997]
[1643796867872,0.00124538,38469.0,38468.0,0.064992]
[1643796868972,0.35622166,38474.0,38469.0,0.064993]
[1643796869172,0.00124536,38470.0,38469.0,0.064993]
[1643796870223,0.35622166,38474.0,38469.0,0.064993]
[1643796870446,0.00124535,38471.0,38469.0,0.064993]
[1643796871423,0.02716192,38474.0,38469.0,0.36489652]
[1643796871624,0.00124534,38472.0,38469.0,0.129981]
[1643796872624,0.02716192,38474.0,38469.0,0.129981]
[1643796872823,0.00124533,38472.0,38469.0,0.129981]
[1643796873281,0.00124533,38472.0,38469.0,0.3686304]
[1643796873475,0.00124533,38472.0,38469.0,0.37121805]
[1643796873674,0.02716192,38474.0,38469.0,0.37213482]
[1643796873873,0.02716192,38474.0,38469.0,0.129981]
[1643796874074,0.00124533,38472.0,38469.0,0.129981]
[1643796874475,0.00124533,38472.0,38470.0,0.23644223]
[1643796874875,0.02716192,38474.0,38470.0,0.05]
[1643796875077,0.00124533,38473.0,38471.0,0.064985]
[1643796876076,0.02716192,38474.0,38471.0,0.064985]
[1643796876278,0.02840723,38474.0,38471.0,0.064985]
[1643796877324,0.02716192,38474.0,38471.0,0.064985]
[1643796877524,0.02840723,38474.0,38471.0,0.064985]
[1643796878125,0.350189,38473.0,38471.0,0.064985]
[1643796878625,0.67924874,38473.0,38471.0,0.064985]
[1643796880025,0.350189,38473.0,38465.0,0.129983]
[1643796880227,0.32905974,38471.0,38464.0,0.1834]
[1643796880431,0.402389,38470.0,38464.0,0.1834]
[1643796880626,0.402389,38470.0,38464.0,0.05]
[1643796880875,0.402389,38470.0,38463.0,0.29617171]
[1643796881074,0.0522,38470.0,38463.0,0.29617171]
[1643796881277,0.06625051,38469.0,38463.0,0.29617171]
[1643796881475,0.0522,38468.0,38463.0,0.29617171]
[1643796881873,0.0522,38468.0,38463.0,0.36117371]
[1643796882075,0.00124538,38469.0,38463.0,0.36117371]
[1643796882274,0.065007,38470.0,38463.0,0.36117371]
[1643796882475,0.0012454,38467.0,38463.0,0.36117371]
[1643796883373,0.49405974,38472.0,38463.0,0.36117371]
[1643796883574,0.00124541,38467.0,38463.0,0.36117371]
[1643796884524,0.49405974,38472.0,38463.0,0.36117371]
[1643796884726,0.00124541,38467.0,38463.0,0.31117371]
[1643796885727,0.32905974,38472.0,38463.0,0.31117371]
[1643796885930,0.00124541,38467.0,38463.0,0.31117371]
[1643796886527,0.00124541,38467.0,38463.0,0.37617071]
[1643796886927,0.32905974,38472.0,38463.0,0.37617071]
[1643796887128,0.00124541,38467.0,38466.0,0.064999]
[1643796887528,0.00124541,38467.0,38463.0,0.31116871]
[1643796887529,0.35143441,38467.0,38463.0,0.24617171]
[1643796887731,0.00124541,38467.0,38463.0,0.24617171]
[1643796888286,0.0522,38470.0,38463.0,0.24617171]
[1643796888482,0.00124541,38467.0,38463.0,0.31117671]
[1643796889378,0.06500378,38469.0,38463.0,0.24617171]
[1643796889579,0.00124541,38467.0,38463.0,0.24617171]
[1643796889779,0.00124541,38467.0,38463.0,0.29617171]
[1643796890580,0.06500378,38469.0,38463.0,0.29617171]
[1643796890782,0.00124541,38467.0,38463.0,0.24617171]
[1643796891381,0.00124541,38467.0,38463.0,0.48077595]
[1643796891580,0.00124541,38467.0,38464.0,0.415176]
[1643796891785,0.20330559,38474.0,38464.0,0.415176]
[1643796892027,0.20330559,38474.0,38465.0,0.27202116]
[1643796892028,0.00124541,38467.0,38465.0,0.27202116]
[1643796892227,0.00124541,38467.0,38466.0,0.400189]
[1643796893027,0.02716192,38474.0,38468.0,0.129976]
[1643796893229,0.02716192,38474.0,38468.0,0.179976]
[1643796893627,0.02716192,38474.0,38469.0,0.23833869]
[1643796894329,0.00124532,38473.0,38469.0,0.36831269]
[1643796894929,0.00124532,38473.0,38469.0,0.30332569]
[1643796895330,0.02716192,38474.0,38469.0,0.30332569]
[1643796895531,0.00124533,38473.0,38469.0,0.30332569]
[1643796895788,0.00124533,38473.0,38469.0,0.064987]
[1643796895981,0.00124533,38473.0,38469.0,0.30063323]
[1643796896177,0.00124533,38473.0,38469.0,0.40063323]
[1643796896378,0.21843424,38476.0,38469.0,0.40063323]
[1643796896578,0.21843424,38476.0,38470.0,0.23263086]
[1643796896778,0.21843424,38476.0,38469.0,0.064987]
[1643796896979,0.350189,38475.0,38469.0,0.064987]
[1643796897178,0.21843424,38476.0,38469.0,0.064987]
[1643796897379,0.2834219,38476.0,38469.0,0.064987]
[1643796899181,0.00136852,38475.0,38469.0,0.064987]
[1643796899527,0.06635674,38475.0,38469.0,0.064987]
[1643796899728,0.06635674,38475.0,38467.0,0.282159]
[1643796899729,0.00136852,38475.0,38470.0,0.23243735]
[1643796900028,0.00136852,38475.0,38470.0,0.064983]
[1643796900228,0.21843424,38476.0,38470.0,0.064983]
[1643796900528,0.00136852,38475.0,38470.0,0.064983]
[1643796901331,0.064985,38476.0,38470.0,0.064983]
[1643796901529,0.064985,38476.0,38469.0,0.29862309]
[1643796901530,0.064985,38476.0,38475.0,0.30025702]
[1643796901731,0.415174,38476.0,38475.0,0.30025702]
[1643796902135,0.17614367,38479.0,38475.0,0.37558702]
[1643796902333,0.17614367,38479.0,38475.0,0.42558702]
[1643796902532,0.17614367,38481.0,38476.0,0.27093538]
[1643796902733,0.17614367,38481.0,38476.0,0.08977748]
[1643796902734,0.00136846,38479.0,38476.0,0.08977748]
[1643796903789,0.35500407,38485.0,38475.0,0.635853]
[1643796903983,0.00136845,38479.0,38476.0,0.064976]
[1643796904184,0.00136845,38479.0,38476.0,0.129948]
[1643796904384,0.00136845,38479.0,38476.0,0.19492]
[1643796904585,0.00136845,38479.0,38477.0,0.26121336]
[1643796904986,0.08379454,38484.0,38477.0,0.26121336]
[1643796905186,0.00136844,38480.0,38478.0,0.064971]
[1643796905388,0.00136844,38480.0,38479.0,0.25601097]
[1643796905589,0.00136844,38480.0,38478.0,0.064971]
[1643796905590,0.06134126,38484.0,38478.0,0.064971]
[1643796905789,0.06134126,38484.0,38477.0,0.05]
[1643796905988,0.06134126,38484.0,38475.0,0.67001544]
[1643796906187,0.39185747,38485.0,38475.0,0.67001544]
[1643796906188,0.0649767,38482.0,38475.0,0.67001544]
[1643796906391,0.0649767,38482.0,38475.0,0.43020102]
[1643796906588,0.0649767,38482.0,38476.0,0.28337213]
[1643796906890,0.0649767,38482.0,38477.0,0.064973]
[1643796907127,0.0649767,38482.0,38478.0,0.23370306]
[1643796907326,0.0649767,38482.0,38477.0,0.064973]
[1643796907528,0.06568139,38482.0,38477.0,0.064973]
[1643796907929,0.06560352,38482.0,38478.0,0.23299598]
[1643796908327,0.06560352,38482.0,38478.0,0.28299598]
[1643796908528,0.06489883,38482.0,38478.0,0.28299598]
[1643796908728,0.06560352,38482.0,38477.0,0.064973]
[1643796908930,0.06560352,38482.0,38478.0,0.2868961]
[1643796909328,0.00070469,38482.0,38480.0,0.11210416]
[1643796909730,0.11496963,38485.0,38480.0,0.11210416]
[1643796909929,0.0013701,38483.0,38480.0,0.11210416]
[1643796910982,0.11496963,38485.0,38481.0,0.23387832]
[1643796911180,0.00137009,38483.0,38481.0,0.29884532]
[1643796911380,0.00137009,38483.0,38481.0,0.29767886]
[1643796911582,0.00137009,38483.0,38481.0,0.064967]
[1643796911780,0.00137009,38483.0,38481.0,0.29872261]
[1643796911980,0.00137009,38483.0,38481.0,0.064967]
[1643796912179,0.22614367,38488.0,38481.0,0.064967]
[1643796912379,0.00137008,38484.0,38481.0,0.29781775]
[1643796912580,0.00137008,38484.0,38481.0,0.29821619]
[1643796912983,0.00137008,38484.0,38482.0,0.350189]
[1643796913181,0.00137008,38484.0,38483.0,0.57313538]
[1643796913382,0.17614367,38491.0,38485.0,0.064953]
[1643796913582,0.17614367,38492.0,38486.0,0.0522]
[1643796913781,0.17614367,38492.0,38487.0,0.22316941]
[1643796913982,0.20004,38493.0,38487.0,0.22316941]
[1643796914380,0.20004,38493.0,38487.0,0.28812141]
[1643796914632,0.20004,38493.0,38490.0,0.11210416]
[1643796914834,0.00136994,38492.0,38490.0,0.11210416]
[1643796915035,0.00136994,38492.0,38491.0,0.18121309]
[1643796915235,0.00136994,38492.0,38490.0,0.16210416]
[1643796915732,0.27093538,38499.0,38490.0,0.16210416]
[1643796915934,0.20456904,38500.0,38490.0,0.16210416]
[1643796916132,0.00136992,38493.0,38490.0,0.16210416]
[1643796917034,0.02048408,38498.0,38490.0,0.16210416]
[1643796917233,0.00136992,38493.0,38490.0,0.16210416]
[1643796917733,0.00136992,38493.0,38490.0,0.33741786]
[1643796917933,0.00136992,38493.0,38490.0,0.16210416]
[1643796918134,0.06494994,38499.0,38490.0,0.33893223]
[1643796918383,0.00136992,38493.0,38490.0,0.16210416]
[1643796918784,0.00136992,38493.0,38490.0,0.11210416]
[1643796919488,0.25291213,38494.0,38490.0,0.11210416]
[1643796919682,0.25291213,38494.0,38487.0,0.22316941]
[1643796919683,0.00136992,38493.0,38487.0,0.22316941]
[1643796919883,0.00136992,38493.0,38490.0,0.05605208]
[1643796920084,0.00136992,38493.0,38490.0,0.11210416]
[1643796920484,0.30291213,38494.0,38490.0,0.11210416]
[1643796920885,0.00136992,38493.0,38490.0,0.11210416]
[1643796921683,0.30291213,38494.0,38490.0,0.11210416]
[1643796922142,0.7,38490.0,38484.0,0.5]
[1643796922339,0.28404527,38489.0,38484.0,0.05]
[1643796922739,0.52515617,38489.0,38480.0,0.129919]
[1643796922938,0.3490125,38489.0,38482.0,0.22481046]
[1643796923140,0.00137002,38487.0,38482.0,0.22481046]
[1643796924039,0.27868322,38486.0,38482.0,0.22481046]
[1643796924239,0.27868322,38486.0,38482.0,0.27481046]
[1643796924440,0.27990278,38486.0,38482.0,0.27481046]
[1643796924840,0.00121956,38486.0,38482.0,0.27481046]
[1643796925441,0.06497057,38487.0,38482.0,0.27481046]
[1643796925794,0.00121957,38486.0,38482.0,0.27481046]
[1643796926386,0.25293767,38486.0,38481.0,0.010395]
[1643796926587,0.350189,38485.0,38481.0,0.010395]
[1643796926786,0.26921517,38484.0,38481.0,0.010395]
[1643796927086,0.37504498,38483.0,38481.0,0.010395]
[1643796927288,0.25559564,38482.0,38481.0,0.010395]
[1643796927487,0.60578464,38482.0,38481.0,0.28868484]
[1643796927689,0.06497798,38483.0,38481.0,0.28868484]
[1643796928087,0.25160307,38482.0,38481.0,0.28868484]
[1643796928287,0.06619758,38483.0,38481.0,0.28868484]
[1643796929086,0.06497798,38483.0,38481.0,0.28868484]
[1643796932560,0.26947048,38488.0,38481.0,0.28868484]
[1643796932561,0.17614367,38489.0,38482.0,0.26484246]
[1643796932756,0.17614367,38489.0,38481.0,0.33868484]
[1643796932757,0.00124584,38484.0,38481.0,0.33868484]
[1643796932954,0.00124584,38484.0,38482.0,0.350189]
[1643796933382,0.00124584,38484.0,38483.0,1.78127473]
[1643796933583,0.00124584,38484.0,38481.0,0.33868484]